[Event "Betsys MČR v online bleskovém šachu 2021"]
[Site "Chess.com"]
[Date "2021.04.17"]
[Round "5"]
[White "VeceraP1973"]
[Black "lupinek23"]
[Result "1-0"]
[WhiteElo "1915"]
[BlackElo "1623"]
[TimeControl "180+1"]
[EndTime "9:47:17 PDT"]
[Termination "Uživatel VeceraP1973 zvítězil po vzdání soupeře"]

1. e4 {[%clk 0:03:00.9]} 1... e5 {[%clk 0:02:58.4]} 2. Nf3 {[%clk 0:03:00.1]}
2... Nc6 {[%clk 0:02:58]} 3. d4 {[%clk 0:02:59.2]} 3... exd4 {[%clk 0:02:56.9]}
4. Bc4 {[%clk 0:02:58.9]} 4... Nf6 {[%clk 0:02:56]} 5. e5 {[%clk 0:02:56.8]}
5... Ng4 {[%clk 0:02:52.6]} 6. Bf4 {[%clk 0:02:53.2]} 6... d6 {[%clk 0:02:50.2]}
7. exd6 {[%clk 0:02:41.5]} 7... Bxd6 {[%clk 0:02:45.7]} 8. Qe2+ {[%clk
0:02:36.3]} 8... Qe7 {[%clk 0:02:34.6]} 9. Bxd6 {[%clk 0:02:31.3]} 9... cxd6
{[%clk 0:02:32.1]} 10. Nbd2 {[%clk 0:02:21.3]} 10... Nge5 {[%clk 0:02:20.8]} 11.
Bb5 {[%clk 0:02:13.4]} 11... O-O {[%clk 0:02:17]} 12. O-O-O {[%clk 0:02:06.9]}
12... a6 {[%clk 0:02:11]} 13. Ba4 {[%clk 0:02:01.3]} 13... b5 {[%clk 0:02:08.5]}
14. Bb3 {[%clk 0:02:00.5]} 14... Nxf3 {[%clk 0:01:48.5]} 15. Qxf3 {[%clk
0:01:58.1]} 15... Bb7 {[%clk 0:01:44.3]} 16. Qf4 {[%clk 0:01:46.7]} 16... a5
{[%clk 0:01:37.3]} 17. Bd5 {[%clk 0:01:39]} 17... Nb4 {[%clk 0:01:31.8]} 18.
Bxb7 {[%clk 0:01:36.5]} 18... Qxb7 {[%clk 0:01:31.1]} 19. a3 {[%clk 0:01:30.4]}
19... Nd5 {[%clk 0:01:13.4]} 20. Qxd4 {[%clk 0:01:29.2]} 20... Rac8 {[%clk
0:01:08.7]} 21. Nf3 {[%clk 0:01:25]} 21... Qc6 {[%clk 0:01:03.5]} 22. Rd2 {[%clk
0:01:18.6]} 22... Nf6 {[%clk 0:00:51.9]} 23. Qxd6 {[%clk 0:01:17.4]} 23... Qxd6
{[%clk 0:00:45]} 24. Rxd6 {[%clk 0:01:16.5]} 24... Ne4 {[%clk 0:00:45.2]} 25.
Rd5 {[%clk 0:01:12.7]} 25... Nxf2 {[%clk 0:00:45]} 26. Rf1 {[%clk 0:01:11.3]}
26... Ne4 {[%clk 0:00:43.6]} 27. Rxb5 {[%clk 0:01:10.1]} 27... a4 {[%clk
0:00:38.3]} 28. Rb4 {[%clk 0:01:09.6]} 28... Rfe8 {[%clk 0:00:35.9]} 29. Rxa4
{[%clk 0:01:08]} 29... Nc5 {[%clk 0:00:29.5]} 30. Ra7 {[%clk 0:00:57.3]} 30...
Nd3+ {[%clk 0:00:28.2]} 31. Kb1 {[%clk 0:00:55.9]} 31... Nc5 {[%clk 0:00:22.1]}
32. b4 {[%clk 0:00:54]} 32... Ne6 {[%clk 0:00:19.8]} 33. Ne5 {[%clk 0:00:53.1]}
33... f6 {[%clk 0:00:16.7]} 34. Nd3 {[%clk 0:00:47.7]} 34... Nd4 {[%clk
0:00:16.5]} 35. Rf2 {[%clk 0:00:45.9]} 35... Re1+ {[%clk 0:00:15.5]} 36. Kb2
{[%clk 0:00:45.3]} 36... Rce8 {[%clk 0:00:14.2]} 37. Rd7 {[%clk 0:00:41.6]}
37... Nb5 {[%clk 0:00:13.3]} 38. a4 {[%clk 0:00:39.8]} 38... Ra8 {[%clk
0:00:09.5]} 39. axb5 {[%clk 0:00:38.9]} 39... Raa1 {[%clk 0:00:07.8]} 40. b6
{[%clk 0:00:37.8]} 40... Reb1+ {[%clk 0:00:07.2]} 41. Kc3 {[%clk 0:00:37.4]} 1-0

[Event "Betsys MČR v online bleskovém šachu 2021"]
[Site "Chess.com"]
[Date "2021.04.17"]
[Round "5"]
[White "Mimochodem"]
[Black "nw_tynka"]
[Result "1/2-1/2"]
[WhiteElo "1796"]
[BlackElo "2187"]
[TimeControl "180+1"]
[EndTime "9:47:18 PDT"]
[Termination "Remíza – nedostatek materiálu"]

1. e4 {[%clk 0:03:00.9]} 1... c5 {[%clk 0:02:59.5]} 2. Nf3 {[%clk 0:03:00.9]}
2... Nc6 {[%clk 0:02:59.7]} 3. Nc3 {[%clk 0:03:00.9]} 3... e6 {[%clk 0:02:58.2]}
4. Bc4 {[%clk 0:03:00.9]} 4... a6 {[%clk 0:02:53.6]} 5. a4 {[%clk 0:03:00.4]}
5... d6 {[%clk 0:02:50.2]} 6. d3 {[%clk 0:03:00.6]} 6... Nf6 {[%clk 0:02:49.7]}
7. O-O {[%clk 0:03:00.1]} 7... Be7 {[%clk 0:02:49.6]} 8. Bg5 {[%clk 0:03:00.1]}
8... O-O {[%clk 0:02:48.7]} 9. Re1 {[%clk 0:02:59.4]} 9... h6 {[%clk 0:02:48.2]}
10. Bh4 {[%clk 0:02:56.3]} 10... Rb8 {[%clk 0:02:44]} 11. Qd2 {[%clk 0:02:46.5]}
11... Bd7 {[%clk 0:02:40.9]} 12. Bb3 {[%clk 0:02:42.3]} 12... Na5 {[%clk
0:02:22.6]} 13. Rad1 {[%clk 0:02:37.2]} 13... Nxb3 {[%clk 0:02:19.7]} 14. cxb3
{[%clk 0:02:37.6]} 14... b5 {[%clk 0:02:16.2]} 15. axb5 {[%clk 0:02:34]} 15...
axb5 {[%clk 0:02:15.5]} 16. d4 {[%clk 0:02:32.2]} 16... cxd4 {[%clk 0:01:39.7]}
17. Qxd4 {[%clk 0:02:22.4]} 17... e5 {[%clk 0:00:57]} 18. Qd3 {[%clk 0:02:16.3]}
18... Be6 {[%clk 0:00:51]} 19. Bxf6 {[%clk 0:02:13.6]} 19... Bxf6 {[%clk
0:00:50.3]} 20. Nd5 {[%clk 0:02:14.3]} 20... Bg5 {[%clk 0:00:35.5]} 21. Nxg5
{[%clk 0:02:10.1]} 21... hxg5 {[%clk 0:00:23]} 22. b4 {[%clk 0:02:04.4]} 22...
Bxd5 {[%clk 0:00:19.1]} 23. Qxd5 {[%clk 0:02:02.7]} 23... Rb6 {[%clk 0:00:18.7]}
24. Rc1 {[%clk 0:01:59.7]} 24... Qf6 {[%clk 0:00:17.1]} 25. Rc6 {[%clk
0:01:53.6]} 25... Rxc6 {[%clk 0:00:16.5]} 26. Qxc6 {[%clk 0:01:53.3]} 26... g4
{[%clk 0:00:13.4]} 27. Rd1 {[%clk 0:01:51.6]} 27... Rd8 {[%clk 0:00:12.7]} 28.
Qxb5 {[%clk 0:01:48.5]} 28... Qe6 {[%clk 0:00:12.2]} 29. Rd5 {[%clk 0:01:43.2]}
29... Qd7 {[%clk 0:00:10.3]} 30. Qxd7 {[%clk 0:01:40.8]} 30... Rxd7 {[%clk
0:00:10]} 31. b5 {[%clk 0:01:41.5]} 31... Kf8 {[%clk 0:00:08.9]} 32. b4 {[%clk
0:01:40.4]} 32... Ke7 {[%clk 0:00:08.5]} 33. f3 {[%clk 0:01:41.1]} 33... gxf3
{[%clk 0:00:07.5]} 34. gxf3 {[%clk 0:01:41.8]} 34... Rc7 {[%clk 0:00:06.7]} 35.
Kf2 {[%clk 0:01:41.4]} 35... Rc2+ {[%clk 0:00:06.2]} 36. Kg3 {[%clk 0:01:41.2]}
36... Rb2 {[%clk 0:00:06.3]} 37. f4 {[%clk 0:01:36.4]} 37... Rxb4 {[%clk
0:00:06.5]} 38. fxe5 {[%clk 0:01:36.5]} 38... dxe5 {[%clk 0:00:07.3]} 39. Rxe5+
{[%clk 0:01:36.6]} 39... Kd6 {[%clk 0:00:07.3]} 40. Kf4 {[%clk 0:01:36.2]} 40...
Rc4 {[%clk 0:00:06.5]} 41. Rd5+ {[%clk 0:01:35.3]} 41... Ke6 {[%clk 0:00:06.3]}
42. b6 {[%clk 0:01:31.1]} 42... Rb4 {[%clk 0:00:06.1]} 43. Rg5 {[%clk
0:01:29.7]} 43... Rxb6 {[%clk 0:00:06.1]} 44. Rxg7 {[%clk 0:01:29.7]} 44... Kf6
{[%clk 0:00:05.9]} 45. Rh7 {[%clk 0:01:29.4]} 45... Rb2 {[%clk 0:00:06]} 46. h4
{[%clk 0:01:28.2]} 46... Kg6 {[%clk 0:00:05.9]} 47. Rh8 {[%clk 0:01:27]} 47...
Kg7 {[%clk 0:00:05.8]} 48. Rh5 {[%clk 0:01:25.3]} 48... Rh2 {[%clk 0:00:05.6]}
49. Kg3 {[%clk 0:01:24.2]} 49... Rh1 {[%clk 0:00:05.2]} 50. Re5 {[%clk
0:01:22.3]} 50... f6 {[%clk 0:00:04.9]} 51. Rc5 {[%clk 0:01:21.2]} 51... Kg6
{[%clk 0:00:04.6]} 52. h5+ {[%clk 0:01:20.7]} 52... Rxh5 {[%clk 0:00:03.7]} 53.
Rxh5 {[%clk 0:01:19.1]} 53... Kxh5 {[%clk 0:00:03.3]} 54. Kf4 {[%clk 0:01:19]}
54... Kg6 {[%clk 0:00:03.2]} 55. e5 {[%clk 0:01:19.3]} 55... fxe5+ {[%clk
0:00:03]} 56. Kxe5 {[%clk 0:01:18.6]} 1/2-1/2

[Event "Betsys MČR v online bleskovém šachu 2021"]
[Site "Chess.com"]
[Date "2021.04.17"]
[Round "5"]
[White "Krvelacny_krecek"]
[Black "DrStillestein"]
[Result "1-0"]
[WhiteElo "2388"]
[BlackElo "2113"]
[TimeControl "180+1"]
[EndTime "9:47:19 PDT"]
[Termination "Uživatel Krvelacny_krecek zvítězil po vzdání soupeře"]

1. d4 {[%clk 0:03:00.9]} 1... d5 {[%clk 0:02:59.9]} 2. Nf3 {[%clk 0:02:55.8]}
2... Nf6 {[%clk 0:02:58.4]} 3. g3 {[%clk 0:02:55.1]} 3... g6 {[%clk 0:02:58.4]}
4. c4 {[%clk 0:02:50.9]} 4... c6 {[%clk 0:02:57.5]} 5. Bg2 {[%clk 0:02:50.7]}
5... Bg7 {[%clk 0:02:57.4]} 6. cxd5 {[%clk 0:02:51]} 6... cxd5 {[%clk
0:02:55.1]} 7. Ne5 {[%clk 0:02:51.2]} 7... O-O {[%clk 0:02:51.7]} 8. Nc3 {[%clk
0:02:51.2]} 8... Nc6 {[%clk 0:02:48.4]} 9. Nxc6 {[%clk 0:02:50.6]} 9... bxc6
{[%clk 0:02:49.3]} 10. O-O {[%clk 0:02:50.8]} 10... Bf5 {[%clk 0:02:41.8]} 11.
Be3 {[%clk 0:02:43.3]} 11... Ne4 {[%clk 0:02:41.6]} 12. Na4 {[%clk 0:02:42.1]}
12... e5 {[%clk 0:02:33.7]} 13. Rc1 {[%clk 0:02:36.8]} 13... Rc8 {[%clk
0:02:30.4]} 14. dxe5 {[%clk 0:02:29]} 14... Bxe5 {[%clk 0:02:27]} 15. Bxa7
{[%clk 0:02:28.7]} 15... Qa5 {[%clk 0:02:18.8]} 16. Bd4 {[%clk 0:02:15.4]} 16...
Bxd4 {[%clk 0:01:54]} 17. Qxd4 {[%clk 0:02:15.4]} 17... c5 {[%clk 0:01:33.8]}
18. Qd1 {[%clk 0:02:15.2]} 18... d4 {[%clk 0:01:30.8]} 19. Bxe4 {[%clk 0:01:59]}
19... Bxe4 {[%clk 0:01:31.3]} 20. f3 {[%clk 0:01:59.1]} 20... Bd5 {[%clk
0:01:25.4]} 21. b3 {[%clk 0:01:58.7]} 21... Rfe8 {[%clk 0:01:22.4]} 22. Re1
{[%clk 0:01:48.4]} 22... Re3 {[%clk 0:01:19.8]} 23. Kf2 {[%clk 0:01:40.5]} 23...
Qb4 {[%clk 0:01:03.3]} 24. Rc2 {[%clk 0:01:20.2]} 24... Be6 {[%clk 0:01:00.9]}
25. Qd2 {[%clk 0:01:18.4]} 25... Qxd2 {[%clk 0:00:53.1]} 26. Rxd2 {[%clk
0:01:18.1]} 26... Bd7 {[%clk 0:00:49.4]} 27. Nb6 {[%clk 0:01:13.8]} 27... Rc7
{[%clk 0:00:47.6]} 28. Rc1 {[%clk 0:01:13.3]} 28... Be6 {[%clk 0:00:40]} 29.
Rxd4 {[%clk 0:01:08.8]} 29... cxd4 {[%clk 0:00:40.1]} 30. Rxc7 {[%clk
0:01:08.3]} 30... Rc3 {[%clk 0:00:40.1]} 31. Rxc3 {[%clk 0:01:03.7]} 31... dxc3
{[%clk 0:00:41]} 32. Ke3 {[%clk 0:01:00.8]} 32... Bf5 {[%clk 0:00:39.7]} 33. Nd5
{[%clk 0:00:58.8]} 33... c2 {[%clk 0:00:36.7]} 34. Kd2 {[%clk 0:00:58.9]} 34...
Be6 {[%clk 0:00:35.6]} 35. Nb4 {[%clk 0:00:55.5]} 35... c1=Q+ {[%clk 0:00:34.9]}
36. Kxc1 {[%clk 0:00:55]} 36... Kf8 {[%clk 0:00:35.8]} 37. Kd2 {[%clk
0:00:54.8]} 37... Ke7 {[%clk 0:00:36.7]} 38. e4 {[%clk 0:00:54.9]} 38... Kd6
{[%clk 0:00:37.1]} 39. f4 {[%clk 0:00:51.3]} 39... Kc5 {[%clk 0:00:37.4]} 40.
Kc3 {[%clk 0:00:50.9]} 40... h5 {[%clk 0:00:35.3]} 41. Nd3+ {[%clk 0:00:50.8]}
41... Kb5 {[%clk 0:00:35.1]} 42. a4+ {[%clk 0:00:50.2]} 42... Ka5 {[%clk
0:00:34.9]} 43. Nc5 {[%clk 0:00:46.9]} 43... Bc8 {[%clk 0:00:33.8]} 44. b4+
{[%clk 0:00:46.4]} 44... Kb6 {[%clk 0:00:34.4]} 45. Kc4 {[%clk 0:00:45]} 45...
f6 {[%clk 0:00:31.4]} 46. a5+ {[%clk 0:00:45.1]} 46... Kc6 {[%clk 0:00:30.9]}
47. b5+ {[%clk 0:00:45.3]} 47... Kd6 {[%clk 0:00:31]} 48. Kd4 {[%clk 0:00:45.2]}
48... g5 {[%clk 0:00:30.5]} 49. e5+ {[%clk 0:00:42.9]} 49... fxe5+ {[%clk
0:00:30.4]} 50. fxe5+ {[%clk 0:00:42.5]} 50... Ke7 {[%clk 0:00:31]} 51. b6
{[%clk 0:00:40.5]} 51... h4 {[%clk 0:00:30.2]} 52. b7 {[%clk 0:00:40.4]} 52...
hxg3 {[%clk 0:00:31.1]} 53. hxg3 {[%clk 0:00:39.5]} 1-0

[Event "Betsys MČR v online bleskovém šachu 2021"]
[Site "Chess.com"]
[Date "2021.04.17"]
[Round "5"]
[White "Alesbar"]
[Black "alenka777"]
[Result "0-1"]
[WhiteElo "1606"]
[BlackElo "1289"]
[TimeControl "180+1"]
[EndTime "9:47:19 PDT"]
[Termination "Uživatel alenka777 zvítězil na čas"]

1. Nf3 {[%clk 0:03:00.9]} 1... d5 {[%clk 0:02:58.8]} 2. g3 {[%clk 0:03:00.6]}
2... Nf6 {[%clk 0:02:58.7]} 3. Bg2 {[%clk 0:03:00.5]} 3... Nc6 {[%clk
0:02:58.3]} 4. O-O {[%clk 0:03:00]} 4... e5 {[%clk 0:02:53.4]} 5. d3 {[%clk
0:02:59.6]} 5... Bg4 {[%clk 0:02:51.5]} 6. Nbd2 {[%clk 0:02:59.1]} 6... Bd6
{[%clk 0:02:47.9]} 7. c4 {[%clk 0:02:58.5]} 7... dxc4 {[%clk 0:02:47]} 8. Nxc4
{[%clk 0:02:57.9]} 8... Qe7 {[%clk 0:02:38.6]} 9. Qa4 {[%clk 0:02:43.5]} 9...
O-O {[%clk 0:02:33.6]} 10. Ne3 {[%clk 0:02:36.9]} 10... Nd4 {[%clk 0:02:19.8]}
11. Nxd4 {[%clk 0:02:28]} 11... exd4 {[%clk 0:02:18.2]} 12. Nxg4 {[%clk
0:02:27.3]} 12... Nxg4 {[%clk 0:02:17]} 13. Qxd4 {[%clk 0:02:11.4]} 13... h5
{[%clk 0:02:07.2]} 14. Bf3 {[%clk 0:01:56.8]} 14... Ne5 {[%clk 0:02:00.9]} 15.
Bxh5 {[%clk 0:01:48.3]} 15... Qf6 {[%clk 0:01:58.2]} 16. Bf4 {[%clk 0:01:40.4]}
16... g6 {[%clk 0:01:52.4]} 17. Bxe5 {[%clk 0:00:46.4]} 17... Bxe5 {[%clk
0:01:48.7]} 18. Qg4 {[%clk 0:00:45.7]} 18... Bxb2 {[%clk 0:01:39.9]} 19. Rab1
{[%clk 0:00:45]} 19... Be5 {[%clk 0:01:31.6]} 20. Rxb7 {[%clk 0:00:40]} 20...
Qg7 {[%clk 0:01:28.8]} 21. Bxg6 {[%clk 0:00:32.3]} 21... fxg6 {[%clk 0:01:27.3]}
22. Qe6+ {[%clk 0:00:31.6]} 22... Kh8 {[%clk 0:01:24.3]} 23. Rb5 {[%clk
0:00:28.4]} 23... Bf6 {[%clk 0:01:22]} 24. Qd5 {[%clk 0:00:25.2]} 24... Rad8
{[%clk 0:01:14.9]} 25. Qe4 {[%clk 0:00:22.3]} 25... Qh6 {[%clk 0:01:04.3]} 26.
Rfb1 {[%clk 0:00:17.4]} 26... Kg7 {[%clk 0:00:57.7]} 27. Qc6 {[%clk 0:00:15.3]}
27... Rf7 {[%clk 0:00:53.5]} 28. Rb7 {[%clk 0:00:14.2]} 28... Be5 {[%clk
0:00:51]} 29. f4 {[%clk 0:00:11.5]} 29... Bd4+ {[%clk 0:00:50.1]} 30. Kg2 {[%clk
0:00:10.1]} 30... g5 {[%clk 0:00:46.7]} 31. Qxh6+ {[%clk 0:00:07.4]} 31... Kxh6
{[%clk 0:00:46]} 32. Rc1 {[%clk 0:00:06.6]} 32... gxf4 {[%clk 0:00:45]} 33.
Rcxc7 {[%clk 0:00:04.2]} 33... Rxc7 {[%clk 0:00:43.6]} 34. Rxc7 {[%clk 0:00:04]}
34... fxg3 {[%clk 0:00:42.6]} 35. hxg3 {[%clk 0:00:04.3]} 35... Re8 {[%clk
0:00:41.9]} 36. e4 {[%clk 0:00:03.6]} 36... Rb8 {[%clk 0:00:40.4]} 37. Rc6+
{[%clk 0:00:02.7]} 37... Kg5 {[%clk 0:00:39.3]} 38. Rd6 {[%clk 0:00:01.6]} 38...
Be5 {[%clk 0:00:38]} 0-1

[Event "Betsys MČR v online bleskovém šachu 2021"]
[Site "Chess.com"]
[Date "2021.04.17"]
[Round "5"]
[White "MartinCerveny"]
[Black "Chessillusion213"]
[Result "1-0"]
[WhiteElo "2653"]
[BlackElo "2171"]
[TimeControl "180+1"]
[EndTime "9:47:21 PDT"]
[Termination "Uživatel MartinCerveny zvítězil po vzdání soupeře"]

1. d4 {[%clk 0:03:00.9]} 1... Nf6 {[%clk 0:02:59.7]} 2. Nf3 {[%clk 0:03:00.1]}
2... g6 {[%clk 0:02:59.8]} 3. g3 {[%clk 0:03:00.1]} 3... Bg7 {[%clk 0:03:00.1]}
4. Bg2 {[%clk 0:03:00.6]} 4... O-O {[%clk 0:03:00.6]} 5. O-O {[%clk 0:03:00.9]}
5... d6 {[%clk 0:03:01.1]} 6. b4 {[%clk 0:03:00.9]} 6... a6 {[%clk 0:02:56.8]}
7. Bb2 {[%clk 0:03:00.1]} 7... Nc6 {[%clk 0:02:56.3]} 8. a3 {[%clk 0:02:56.3]}
8... a5 {[%clk 0:02:37]} 9. b5 {[%clk 0:02:55.3]} 9... Na7 {[%clk 0:02:36.8]}
10. a4 {[%clk 0:02:55.1]} 10... c6 {[%clk 0:02:34.8]} 11. c4 {[%clk 0:02:54.9]}
11... d5 {[%clk 0:02:34.6]} 12. bxc6 {[%clk 0:02:42.8]} 12... Nxc6 {[%clk
0:02:21.4]} 13. c5 {[%clk 0:02:17]} 13... b6 {[%clk 0:02:14.1]} 14. Ne5 {[%clk
0:01:59.6]} 14... Nb4 {[%clk 0:01:53]} 15. Nc3 {[%clk 0:01:47.6]} 15... Ba6
{[%clk 0:01:44.3]} 16. Re1 {[%clk 0:01:40.5]} 16... Nd7 {[%clk 0:01:26.9]} 17.
Nxd5 {[%clk 0:01:29.6]} 17... Nxd5 {[%clk 0:01:11.3]} 18. Bxd5 {[%clk
0:01:28.3]} 18... Nxe5 {[%clk 0:01:11.3]} 19. dxe5 {[%clk 0:01:28]} 19... Rc8
{[%clk 0:01:06.4]} 20. c6 {[%clk 0:01:20.1]} 20... Qc7 {[%clk 0:01:00.8]} 21. f4
{[%clk 0:01:17.5]} 21... Rfd8 {[%clk 0:00:58.7]} 22. Qb3 {[%clk 0:01:17.5]}
22... e6 {[%clk 0:00:46.8]} 23. Bf3 {[%clk 0:01:17.4]} 23... b5 {[%clk
0:00:38.4]} 24. axb5 {[%clk 0:01:11.7]} 24... Rb8 {[%clk 0:00:38.6]} 25. Ba3
{[%clk 0:00:41.5]} 25... Rxb5 {[%clk 0:00:30]} 26. Qe3 {[%clk 0:00:40.8]} 26...
Bf8 {[%clk 0:00:27.6]} 27. Red1 {[%clk 0:00:36.4]} 27... Rbb8 {[%clk 0:00:22.6]}
28. Bxf8 {[%clk 0:00:34.3]} 28... Kxf8 {[%clk 0:00:20.4]} 29. Qc5+ {[%clk
0:00:33.3]} 29... Kg8 {[%clk 0:00:20.3]} 30. Rd6 {[%clk 0:00:33.2]} 30... Rb5
{[%clk 0:00:19.6]} 31. Qd4 {[%clk 0:00:31.1]} 31... Rbb8 {[%clk 0:00:16.1]} 32.
Rd1 {[%clk 0:00:30.7]} 32... Rdc8 {[%clk 0:00:14.8]} 33. Rd7 {[%clk 0:00:30.7]}
33... Qb6 {[%clk 0:00:14.1]} 34. Qxb6 {[%clk 0:00:29]} 34... Rxb6 {[%clk
0:00:13.6]} 35. c7 {[%clk 0:00:29]} 35... Rb2 {[%clk 0:00:07.9]} 36. Rd8+ {[%clk
0:00:28.1]} 36... Kg7 {[%clk 0:00:06.6]} 37. Rxc8 {[%clk 0:00:28.3]} 37... Bxc8
{[%clk 0:00:06.7]} 38. Rd8 {[%clk 0:00:29.2]} 1-0

[Event "Betsys MČR v online bleskovém šachu 2021"]
[Site "Chess.com"]
[Date "2021.04.17"]
[Round "5"]
[White "SanyH"]
[Black "PavelNo"]
[Result "1/2-1/2"]
[WhiteElo "1606"]
[BlackElo "1969"]
[TimeControl "180+1"]
[EndTime "9:47:22 PDT"]
[Termination "Remíza opakováním pozice"]

1. e4 {[%clk 0:03:00.9]} 1... c5 {[%clk 0:02:57.6]} 2. Nf3 {[%clk 0:03:00.6]}
2... e6 {[%clk 0:02:57.8]} 3. d4 {[%clk 0:03:00.6]} 3... cxd4 {[%clk 0:02:58.4]}
4. Nxd4 {[%clk 0:03:00.4]} 4... Nf6 {[%clk 0:02:58.8]} 5. Nc3 {[%clk 0:02:58.7]}
5... d6 {[%clk 0:02:58.9]} 6. Bd3 {[%clk 0:02:54]} 6... Nc6 {[%clk 0:02:57]} 7.
Be3 {[%clk 0:02:53]} 7... Be7 {[%clk 0:02:56.6]} 8. O-O {[%clk 0:02:52.6]} 8...
O-O {[%clk 0:02:56.3]} 9. h3 {[%clk 0:02:45]} 9... d5 {[%clk 0:02:56.1]} 10.
exd5 {[%clk 0:02:43.4]} 10... Nxd5 {[%clk 0:02:54.4]} 11. Nxd5 {[%clk
0:02:41.7]} 11... Qxd5 {[%clk 0:02:54.1]} 12. c3 {[%clk 0:02:37.8]} 12... e5
{[%clk 0:02:51.3]} 13. Nxc6 {[%clk 0:02:29.9]} 13... Qxc6 {[%clk 0:02:50.2]} 14.
Qc2 {[%clk 0:02:28]} 14... g6 {[%clk 0:02:45.8]} 15. Bh6 {[%clk 0:02:24.7]}
15... Re8 {[%clk 0:02:44]} 16. Qe2 {[%clk 0:02:16]} 16... a6 {[%clk 0:02:37.2]}
17. Qxe5 {[%clk 0:02:04.8]} 17... Bf8 {[%clk 0:02:37]} 18. Qg5 {[%clk 0:02:04]}
18... f6 {[%clk 0:02:34]} 19. Qh4 {[%clk 0:01:59.6]} 19... Bxh6 {[%clk
0:02:27.7]} 20. Qxh6 {[%clk 0:01:59.2]} 20... Be6 {[%clk 0:02:19.6]} 21. Bxg6
{[%clk 0:01:40.4]} 21... hxg6 {[%clk 0:02:18.3]} 22. Qxg6+ {[%clk 0:01:41.3]}
22... Kf8 {[%clk 0:02:10.5]} 23. Qxf6+ {[%clk 0:01:40.8]} 23... Bf7 {[%clk
0:02:09.1]} 24. Qh8+ {[%clk 0:01:37.9]} 24... Bg8 {[%clk 0:02:09.1]} 25. Qh5
{[%clk 0:01:26.5]} 25... Rad8 {[%clk 0:02:01.1]} 26. Qf5+ {[%clk 0:01:24.5]}
26... Bf7 {[%clk 0:01:59.5]} 27. Qf4 {[%clk 0:01:19.2]} 27... Qd6 {[%clk
0:01:56.4]} 28. Qh4 {[%clk 0:01:11.4]} 28... Qe5 {[%clk 0:01:48.1]} 29. Qb4+
{[%clk 0:01:04.9]} 29... Qe7 {[%clk 0:01:45.7]} 30. Qf4 {[%clk 0:00:56.6]} 30...
Qe5 {[%clk 0:01:43]} 31. Qh6+ {[%clk 0:00:55.1]} 31... Qg7 {[%clk 0:01:38.3]}
32. Qf4 {[%clk 0:00:52]} 32... Qe5 {[%clk 0:01:33.6]} 33. Qh6+ {[%clk
0:00:50.6]} 33... Qg7 {[%clk 0:01:33.5]} 34. Qf4 {[%clk 0:00:50]} 34... Kg8
{[%clk 0:01:32.6]} 35. Rad1 {[%clk 0:00:44]} 35... Bd5 {[%clk 0:01:31.6]} 36. f3
{[%clk 0:00:23]} 36... Bc6 {[%clk 0:01:21.4]} 37. Qc4+ {[%clk 0:00:19.6]} 37...
Qf7 {[%clk 0:01:18.2]} 38. Qg4+ {[%clk 0:00:18.1]} 38... Kf8 {[%clk 0:01:16.8]}
39. Rxd8 {[%clk 0:00:16.4]} 39... Rxd8 {[%clk 0:01:16.3]} 40. Re1 {[%clk
0:00:16.3]} 40... Re8 {[%clk 0:01:07.8]} 41. Qb4+ {[%clk 0:00:15.8]} 41... Kg8
{[%clk 0:01:03.3]} 42. Rd1 {[%clk 0:00:14.5]} 42... Qg7 {[%clk 0:00:55]} 43. Rd6
{[%clk 0:00:12.8]} 43... Bxf3 {[%clk 0:00:50.8]} 44. Qc4+ {[%clk 0:00:12.7]}
44... Kh8 {[%clk 0:00:48.3]} 45. Qh4+ {[%clk 0:00:12.3]} 45... Kg8 {[%clk
0:00:47.7]} 46. Qc4+ {[%clk 0:00:10.9]} 46... Kh8 {[%clk 0:00:44.6]} 47. Qh4+
{[%clk 0:00:11.2]} 47... Kg8 {[%clk 0:00:43.9]} 48. Qc4+ {[%clk 0:00:11.2]}
1/2-1/2

[Event "Betsys MČR v online bleskovém šachu 2021"]
[Site "Chess.com"]
[Date "2021.04.17"]
[Round "5"]
[White "KajaOl"]
[Black "petr812"]
[Result "1/2-1/2"]
[WhiteElo "2343"]
[BlackElo "2124"]
[TimeControl "180+1"]
[EndTime "9:47:23 PDT"]
[Termination "Remíza opakováním pozice"]

1. e4 {[%clk 0:03:00.9]} 1... e6 {[%clk 0:02:53.7]} 2. d4 {[%clk 0:03:00.4]}
2... d5 {[%clk 0:02:53.3]} 3. Nd2 {[%clk 0:03:00.7]} 3... a6 {[%clk 0:02:50.6]}
4. Bd3 {[%clk 0:02:49.6]} 4... c5 {[%clk 0:02:49.4]} 5. c3 {[%clk 0:02:49.8]}
5... Nc6 {[%clk 0:02:49]} 6. Ngf3 {[%clk 0:02:42.7]} 6... Nf6 {[%clk 0:02:45]}
7. e5 {[%clk 0:02:24.5]} 7... Nd7 {[%clk 0:02:43.5]} 8. O-O {[%clk 0:02:17.3]}
8... Be7 {[%clk 0:02:41.9]} 9. Re1 {[%clk 0:02:09.9]} 9... O-O {[%clk
0:02:41.2]} 10. Nf1 {[%clk 0:02:06.1]} 10... f6 {[%clk 0:02:38.3]} 11. exf6
{[%clk 0:02:05.4]} 11... Nxf6 {[%clk 0:02:37.5]} 12. Bf4 {[%clk 0:01:53.5]}
12... cxd4 {[%clk 0:02:31.5]} 13. cxd4 {[%clk 0:01:51.4]} 13... Bd6 {[%clk
0:02:29.2]} 14. Bg3 {[%clk 0:01:41]} 14... Bxg3 {[%clk 0:02:05.5]} 15. Nxg3
{[%clk 0:01:38.9]} 15... Bd7 {[%clk 0:02:04]} 16. Qd2 {[%clk 0:01:37.1]} 16...
h6 {[%clk 0:01:36.8]} 17. Rac1 {[%clk 0:01:35.3]} 17... Rc8 {[%clk 0:01:30.4]}
18. Bb1 {[%clk 0:01:26.2]} 18... Ne7 {[%clk 0:01:24.3]} 19. Ne5 {[%clk
0:01:20.4]} 19... Nf5 {[%clk 0:01:22]} 20. Nxf5 {[%clk 0:00:48.2]} 20... exf5
{[%clk 0:01:20.4]} 21. Rc3 {[%clk 0:00:40.1]} 21... Rxc3 {[%clk 0:01:14]} 22.
Qxc3 {[%clk 0:00:39.4]} 22... Ne4 {[%clk 0:01:11.8]} 23. Bxe4 {[%clk 0:00:38.5]}
23... fxe4 {[%clk 0:01:05.9]} 24. Qe3 {[%clk 0:00:35.8]} 24... Be6 {[%clk
0:01:00.4]} 25. Rc1 {[%clk 0:00:35.7]} 25... Qb6 {[%clk 0:00:47.8]} 26. Rc2
{[%clk 0:00:34]} 26... Rc8 {[%clk 0:00:44.7]} 27. Rxc8+ {[%clk 0:00:31.4]} 27...
Bxc8 {[%clk 0:00:43.8]} 28. Qc3 {[%clk 0:00:31.9]} 28... Bf5 {[%clk 0:00:41.7]}
29. b3 {[%clk 0:00:30.1]} 29... Kh7 {[%clk 0:00:38.5]} 30. h3 {[%clk 0:00:27.9]}
30... Qb5 {[%clk 0:00:31.5]} 31. Kh2 {[%clk 0:00:20.4]} 31... Qe2 {[%clk
0:00:30.6]} 32. Qg3 {[%clk 0:00:18.2]} 32... Qxa2 {[%clk 0:00:27.5]} 33. Qf4
{[%clk 0:00:18.4]} 33... Bg6 {[%clk 0:00:22.5]} 34. Nxg6 {[%clk 0:00:17.4]}
34... Kxg6 {[%clk 0:00:21.7]} 35. Qg4+ {[%clk 0:00:17.6]} 35... Kh7 {[%clk
0:00:21.1]} 36. Qf5+ {[%clk 0:00:17.9]} 36... Kh8 {[%clk 0:00:21.1]} 37. Qf8+
{[%clk 0:00:17.7]} 37... Kh7 {[%clk 0:00:21.1]} 38. Qf5+ {[%clk 0:00:18.1]}
38... Kh8 {[%clk 0:00:20.2]} 39. Qf8+ {[%clk 0:00:17.9]} 39... Kh7 {[%clk
0:00:20.3]} 40. Qf5+ {[%clk 0:00:18]} 1/2-1/2